[Event "41st Amateur D7"]
[Site "ChessGUI4"]
[Date "2013.07.10"]
[Round "29.4"]
[White "MadChess 1.2"]
[Black "FireFly 2.6.0 64-bit"]
[Result "1-0"]
[BlackElo "2258"]
[ECO "D12"]
[EventDate "2013.??.??"]
[TimeControl "40/1500:40/1500:40/1500"]
[WhiteElo "2200"]

{ i5 Quad } 1.d4 { [%eval 0,1] [%emt 0:00:00] } 1...d5
{ [%eval 0,1] [%emt 0:00:00] } 2.c4 { [%eval 0,1] [%emt 0:00:00] } 2...c6
{ [%eval 0,1] [%emt 0:00:00] } 3.Nf3 { [%eval 0,1] [%emt 0:00:00] } 3...Nf6
{ [%eval 0,1] [%emt 0:00:00] } 4.e3 { [%eval 0,1] [%emt 0:00:00] } 4...Bf5
{ [%eval 0,1] [%emt 0:00:00] } 5.Nc3 { [%eval 0,1] [%emt 0: 00:00] } 5...e6
{ [%eval 0,1] [%emt 0:00:00] } 6.Nh4 { [%eval 0,1] [%emt 0:00:00] } 6...Bg6
{ [%eval 0,1] [%emt 0:00:00] } 7.Nxg6 { [%eval 0,1] [%emt 0:00:00] } 7...hxg6
{ [%eval 0,1] [%emt 0:00:00] } 8.g3 { [%eval 0,1] [%emt 0:00:00] } 8...Nbd7
{ [%eval 0, 1] [%emt 0:00:00] } 9.cxd5 { [%eval 26,10] [%emt 0:00:43] }
9...exd5 { [%eval -4,11] [%emt 0:00:57] (exd5) } 10.Bd3
{ [%eval 37,11] [%emt 0:00:59] (Bg2) } 10...Qe7
{ [%eval -4,11] [%emt 0:00:56] (Bd6) } 11.Bd2
{ [%eval 25,10] [%emt 0:00:54] (Bd2) } 11...Qe6
{ [%eval -8,10] [%emt 0:00:55] (Qe6) } 12.Qe2
{ [%eval 18,10] [%emt 0:01: 06] (h4) } 12...O-O-O
{ [%eval 4,11] [%emt 0:00:55] (Bd6) } 13.O-O
{ [%eval 19,10] [%emt 0:00:35] (O-O) } 13...Ba3
{ [%eval 38,10] [%emt 0:00:54] (Nb6) } 14.bxa3
{ [%eval 278,11] [%emt 0:00:33] (Nb5) } 14...Rxh2
{ [%eval -156,11] [%emt 0:01:21] (Nb6) } 15.Kxh2
{ [%eval 231,12] [%emt 0:01:00] (Kxh2) } 15...Rh8+
{ [%eval -149,11] [%emt 0:00:42] (Rh8) } 16.Kg1
{ [%eval 252,14] [%emt 0:00:25] (Kg1) } 16...Qh3
{ [%eval -168, 11] [%emt 0:00:42] (Qh3) } 17.f3
{ [%eval 265,16] [%emt 0:00:43] (f3) } 17...Qh1+
{ [%eval -176,11] [%emt 0:00:42] (Qh1) } 18.Kf2
{ [%eval 265,16] [%emt 0:00:00] (Kf2) } 18...Rh2+
{ [%eval -174,12] [%emt 0:00:41] } 19.Ke1
{ [%eval 265,16] [%emt 0: 00:00] (Ke1) } 19...Rxe2+
{ [%eval -172,12] [%emt 0:00:41] } 20.Nxe2
{ [%eval 256,12] [%emt 0:00:22] (Nxe2) } 20...Qg2
{ [%eval -186,12] [%emt 0:00:41] (Qh3) } 21.Rc1
{ [%eval 268,11] [%emt 0:00:26] (Bb4) } 21...Kb8
{ [%eval -187,11] [%emt 0:00:40] (c5) } 22.Bb4
{ [%eval 312,11] [%emt 0:00:22] (e4) } 22...Ne8
{ [%eval -203,11] [%emt 0:00: 40] (Kc8) } 23.a4
{ [%eval 298,12] [%emt 0:01:04] (Kd2) } 23...Ka8
{ [%eval -242,12] [%emt 0:00:40] (Ndf6) } 24.Rf2
{ [%eval 340,11] [%emt 0:00:36] (a5) } 24...Qh1+
{ [%eval -232,13] [%emt 0:00:39] (Qh3) } 25.Kd2
{ [%eval 342,13] [%emt 0:00:40] (Kd2) } 25...Qh3
{ [%eval -256,13] [%emt 0:00:39] (Qh3) } 26.a5
{ [%eval 329,12] [%emt 0:00:33] (Rff1) } 26...Nb8
{ [%eval -247,13] [%emt 0:00:38] (a6) } 27.Rff1
{ [%eval 345,12] [%emt 0:01:20] (Rff1) } 27...Nf6
{ [%eval -251,12] [%emt 0:00:38] (Nf6) } 28.Rh1
{ [%eval 369,11] [%emt 0:00:24] (Rh1) } 28...Qc8
{ [%eval -261,12] [%emt 0:00:37] (Qg2) } 29.Nc3
{ [%eval 368,12] [%emt 0:00:35] (Be7) } 29...Qd8
{ [%eval -261,12] [%emt 0:00:37] (Qe8) } 30.Rh3
{ [%eval 364,12] [%emt 0:00:47] (Rh3) } 30...Qc8
{ [%eval -272,12] [%emt 0:00:36] (Nbd7) } 31.g4
{ [%eval 379,12] [%emt 0:00:43] (Rch1) } 31...Qd8
{ [%eval -298,12] [%emt 0:00:36] (Qd8) } 32.Rch1
{ [%eval 423,13] [%emt 0:01:12] (Rch1) } 32...Nfd7
{ [%eval -342,12] [%emt 0:00:35] (Qc7) } 33.Rh8
{ [%eval 415,12] [%emt 0:00:27] (f4) } 33...Qf6
{ [%eval -364,12] [%emt 0:00:35] (Qf6) } 34.Ke2
{ [%eval 454,11] [%emt 0:00:34] (Be2) } 34...Qe6
{ [%eval -378,12] [%emt 0:00: 34] (b6) } 35.R1h7
{ [%eval 456,12] [%emt 0:00:37] (R1h7) } 35...f5
{ [%eval -446,12] [%emt 0:00:33] (c5) } 36.gxf5
{ [%eval 580,13] [%emt 0:00:50] (Rxg7) } 36...gxf5
{ [%eval -472,13] [%emt 0:00:35] (gxf5) } 37.Rxg7
{ [%eval 575,13] [%emt 0:00:40] (Rxg7) } 37...f4
{ [%eval -608,13] [%emt 0:00:25] (f4) } 38.Nd1
{ [%eval 622,15] [%emt 0:01:53] (Nd1) } 38...a6
{ [%eval -760,13] [%emt 0:00:25] (Qf6) } 39.Rg6
{ [%eval 774, 15] [%emt 0:01:08] (Rg6) } 39...Nf6
{ [%eval -830,13] [%emt 0:00:25] (Qf7) } 40.Rd8
{ [%eval 826,14] [%emt 0:00:48] (Rf8) } 40...c5
{ [%eval -990,13] [%emt 0:00:48] (Qh3) } 1-0

[Event "41st Amateur D7"]
[Site "ChessGUI4"]
[Date "2013.07.10"]
[Round "30.1"]
[White "Carballo 0.8"]
[Black "Butcher 1.64 64-bit"]
[Result "1/2-1/2"]
[BlackElo "2355"]
[ECO "D20"]
[EventDate "2013.??.??"]
[TimeControl "40/1500:40/1500:40/1500"]
[WhiteElo "2273"]

{ i5 Quad } 1.d4 { [%eval 0,1] [%emt 0:00:00] } 1...d5
{ [%eval 0,1] [%emt 0:00:00] } 2.c4 { [%eval 0,1] [%emt 0:00:00] } 2...dxc4
{ [%eval 0,1] [%emt 0:00:00] } 3.e4 { [%eval 0,1] [%emt 0:00:00] } 3...e5
{ [%eval 0,1] [%emt 0:00:00] } 4.Nf3 { [%eval 0,1] [%emt 0:00:00] } 4...Bb4+
{ [%eval 0,1] [%emt 0:00:00] } 5.Nc3 { [%eval 0,1] [%emt 0: 00:00] } 5...exd4
{ [%eval 0,1] [%emt 0:00:00] } 6.Nxd4 { [%eval 0,1] [%emt 0:00:00] } 6...Ne7
{ [%eval 0,1] [%emt 0:00:00] } 7.Bxc4 { [%eval 0,1] [%emt 0:00:00] } 7...Nbc6
{ [%eval 0,1] [%emt 0:00:00] } 8.Be3 { [%eval 0,1] [%emt 0:00:00] } 8...O-O
{ [%eval 0, 1] [%emt 0:00:00] } 9.O-O { [%eval 48,13] [%emt 0:00:37] }
9...Nxd4 { [%eval -1,11] [%emt 0:01:06] (Nxd4) } 10.Bxd4
{ [%eval 38,14] [%emt 0:00:36] (Qxd4) } 10...Bg4
{ [%eval -17,11] [%emt 0:00:59] (Nc6) } 11.f3
{ [%eval 57,14] [%emt 0:00:35] (Be2) } 11...Be6
{ [%eval 4,12] [%emt 0:00:59] (Be6) } 12.Bxe6
{ [%eval 51,14] [%emt 0:00: 34] (Bxe6) } 12...fxe6
{ [%eval -20,11] [%emt 0:00:59] (fxe6) } 13.Bf2
{ [%eval 51,14] [%emt 0:00:33] (Na4) } 13...Nc6
{ [%eval -11,11] [%emt 0:01:04] (Qxd1) } 14.Qb3
{ [%eval 69,13] [%emt 0:00:32] (Qb3) } 14...Qe7
{ [%eval -6,11] [%emt 0:01:00] (Qe7) } 15.a3
{ [%eval 69,14] [%emt 0:00:32] (a3) } 15...Bxc3
{ [%eval -3,12] [%emt 0:01:02] (Bxc3) } 16.Qxc3
{ [%eval 70,14] [%emt 0:00:31] (Qxc3) } 16...Qf7
{ [%eval -1,12] [%emt 0:01:01] (Rfd8) } 17.Qb3
{ [%eval 75,13] [%emt 0:00:30] (Rfd1) } 17...Rab8
{ [%eval 8,12] [%emt 0:00:59] (Rab8) } 18.Rfd1
{ [%eval 78,14] [%emt 0:00:29] (f4) } 18...a6
{ [%eval 5,12] [%emt 0:00:59] (e5) } 19.h4
{ [%eval 83,14] [%emt 0:00:28] (Rd2) } 19...Rfe8
{ [%eval -18,11] [%emt 0:00:58] (e5) } 20.Rac1
{ [%eval 103,13] [%emt 0:00:28] (Rac1) } 20...Rf8
{ [%eval -8,11] [%emt 0:00:56] (h5) } 21.Rc3
{ [%eval 104,14] [%emt 0:00:27] (Qe3) } 21...Na5
{ [%eval -19,12] [%emt 0:00:42] (h5) } 22.Qc2
{ [%eval 94,15] [%emt 0:00:26] (Qc2) } 22...Nc6
{ [%eval 0,12] [%emt 0:00:47] (Nc6) } 23.Qb3
{ [%eval 91,14] [%emt 0:00:26] (Rcd3) } 23...Kh8
{ [%eval 0,12] [%emt 0: 00:47] (Na5) } 24.Bg3
{ [%eval 108,12] [%emt 0:00:25] (Bg3) } 24...Rfe8
{ [%eval 1,12] [%emt 0:00:46] (e5) } 25.Kh1
{ [%eval 115,12] [%emt 0:00:24] (Rcd3) } 25...Kg8
{ [%eval 0,12] [%emt 0:00:45] (a5) } 26.Kg1
{ [%eval 113,12] [%emt 0:00:24] (f4) } 26...Kh8
{ [%eval 3,12] [%emt 0:00:44] (g6) } 27.a4
{ [%eval 115,13] [%emt 0:00:23] (Rcd3) } 27...Kg8
{ [%eval 0,12] [%emt 0:00:38] (h6) } 28.Rc5
{ [%eval 116,12] [%emt 0: 00:23] (Rcd3) } 28...Qe7
{ [%eval -5,11] [%emt 0:00:44] (Qe7) } 29.Rc3
{ [%eval 108,13] [%emt 0:00:22] (Qe3) } 29...Qf7
{ [%eval 0,12] [%emt 0:00:42] (h5) } 30.Rc5
{ [%eval 114,12] [%emt 0:00:21] (Rcd3) } 30...Qe7
{ [%eval -4,11] [%emt 0:00:40] (Qe7) } 31.Bf2
{ [%eval 101,13] [%emt 0:00:21] (Rc2) } 31...Kh8
{ [%eval -1,11] [%emt 0:00:41] (Kh8) } 32.g4
{ [%eval 102,13] [%emt 0:00:20] (h5) } 32...Rf8
{ [%eval -71,11] [%emt 0:00:40] (e5) } 33.Kg2
{ [%eval 104,13] [%emt 0:00:20] (Rc3) } 33...Qe8
{ [%eval -54,11] [%emt 0:00:35] (e5) } 34.Qc3
{ [%eval 166,12] [%emt 0:00:19] (Qc3) } 34...a5
{ [%eval 5,11] [%emt 0:00:33] (Rd8) } 35.Rg5
{ [%eval 128,11] [%emt 0:00:19] (h5) } 35...Qf7
{ [%eval -26,11] [%emt 0:00:31] (Rf7) } 36.Bd4
{ [%eval 135,10] [%emt 0:00:18] (h5) } 36...Nxd4
{ [%eval -21,12] [%emt 0:00:28] (Rg8) } 37.Rxd4
{ [%eval 93,14] [%emt 0:00:18] (Rxd4) } 37...b6
{ [%eval -34,12] [%emt 0:00:26] (b6) } 38.Qd3
{ [%eval 93,13] [%emt 0:00:17] (Qd3) } 38...Rbe8
{ [%eval -35,12] [%emt 0:00:23] (h6) } 39.Rd7
{ [%eval 77,12] [%emt 0:00:17] (e5) } 39...Re7
{ [%eval -54,12] [%emt 0:00:21] (Re7) } 40.Rd8
{ [%eval 53,15] [%emt 0:00:17] (Rd4) } 40...Rxd8
{ [%eval -70,13] [%emt 0:00: 15] (Rxd8) } 41.Qxd8+
{ [%eval 41,17] [%emt 0:00:54] (Qxd8) } 41...Re8
{ [%eval -63,14] [%emt 0:00:49] (Re8) } 42.Qd2
{ [%eval 40,17] [%emt 0:00:52] (Qd3) } 42...Rf8
{ [%eval -73,13] [%emt 0:00:49] (c5) } 43.Qc3
{ [%eval 36,17] [%emt 0:00:51] (Qd3) } 43...c5
{ [%eval -71,13] [%emt 0:00:48] (c5) } 44.Re5
{ [%eval 41,16] [%emt 0:00:50] (Qd3) } 44...Rd8
{ [%eval -82,13] [%emt 0:00:48] (Rd8) } 45.Kg3
{ [%eval 38,16] [%emt 0:00:48] (Qb3) } 45...Rd6
{ [%eval -73,12] [%emt 0:00:48] (Rf8) } 46.Qc4
{ [%eval 35, 15] [%emt 0:00:47] (Qe3) } 46...Qd7
{ [%eval -64,13] [%emt 0:00:52] (Qd7) } 47.g5
{ [%eval 25,15] [%emt 0:00:46] (h5) } 47...Qe7
{ [%eval -56,12] [%emt 0:00:52] (g6) } 48.Qb5
{ [%eval 39,16] [%emt 0:00:45] (f4) } 48...Qd8
{ [%eval -70,13] [%emt 0:00:51] (g6) } 49.Kg4
{ [%eval 36,16] [%emt 0:00:44] (h5) } 49...Kg8
{ [%eval -59,13] [%emt 0:00: 50] (g6) } 50.h5
{ [%eval 31,14] [%emt 0:00:43] (h5) } 50...h6
{ [%eval -52,12] [%emt 0:00:50] (h6) } 51.Qb3
{ [%eval 22,15] [%emt 0:00:42] (g6) } 51...Qf8
{ [%eval -56,12] [%emt 0:00:43] (hxg5) } 52.f4
{ [%eval 29,15] [%emt 0:00:40] (gxh6) } 52...Qe7
{ [%eval -25,13] [%emt 0:00:49] (Qc8) } 53.g6
{ [%eval 26,15] [%emt 0:00:39] (Qg3) } 53...Kh8
{ [%eval 0,15] [%emt 0:01:24] (Kf8) } 54.Qb5
{ [%eval 36,18] [%emt 0:00:38] (Qc4) } 54...Qd8
{ [%eval -1,14] [%emt 0:01:08] (Qd8) } 55.b3
{ [%eval 34,17] [%emt 0: 00:37] (Qc4) } 55...Kg8
{ [%eval 0,14] [%emt 0:00:37] (Qc8) } 56.Qc4
{ [%eval 36,17] [%emt 0:00:37] (Qc4) } 56...Qf6
{ [%eval 0,14] [%emt 0:00:33] (Qf6) } 57.Kg3
{ [%eval 35,17] [%emt 0:00:36] (Kg3) } 57...Qe7
{ [%eval 0,14] [%emt 0:00:37] (Qe7) } 58.Qa6
{ [%eval 35,17] [%emt 0:00:35] (Qa6) } 58...Qd8
{ [%eval 0,14] [%emt 0:00:32] (Qd8) } 59.Qc4
{ [%eval 36,17] [%emt 0:00:34] (Qc4) } 59...Qe7
{ [%eval 0,14] [%emt 0:00:36] (Qe7) } 60.Kg4
{ [%eval 29,17] [%emt 0:00:33] (Qa6) } 60...Kh8
{ [%eval -15,14] [%emt 0:00: 36] (Kh8) } 61.Qa6
{ [%eval 33,17] [%emt 0:00:32] (Kh3) } 61...Qd8
{ [%eval 0,14] [%emt 0:00:35] (Qd8) } 62.Qc4
{ [%eval 21,18] [%emt 0:00:31] (Qc4) } 62...Qf6
{ [%eval -20,14] [%emt 0:00:35] (Qd7) } 63.Kg3
{ [%eval 33,17] [%emt 0:00:31] (Kg3) } 63...Qe7
{ [%eval -11,14] [%emt 0:00:32] (Qe7) } 64.Kg4
{ [%eval 28,17] [%emt 0:00:30] (Kh3) } 64...Qf6
{ [%eval 0,14] [%emt 0:00:34] (Qd7) } 65.Kg3
{ [%eval 28,18] [%emt 0:00:29] (Kg3) } 1/2-1/2

[Event "41st Amateur D7"]
[Site "ChessGUI4"]
[Date "2013.07.10"]
[Round "30.2"]
[White "Gibbon 2.57a 64-bit"]
[Black "Tigran 2.3 64-bit"]
[Result "0-1"]
[BlackElo "2289"]
[ECO "E11"]
[EventDate "2013.??.??"]
[TimeControl "40/1500:40/1500:40/1500"]
[WhiteElo "2251"]

{ i5 Quad } 1.d4 { [%eval 0,1] [%emt 0:00:00] } 1...Nf6
{ [%eval 0,1] [%emt 0:00:00] } 2.c4 { [%eval 0,1] [%emt 0:00:00] } 2...e6
{ [%eval 0,1] [%emt 0:00:00] } 3.Nf3 { [%eval 0,1] [%emt 0:00:00] } 3...Bb4+
{ [%eval 0,1] [%emt 0:00:00] } 4.Nbd2 { [%eval 0,1] [%emt 0:00:00] } 4...a5
{ [%eval 0,1] [%emt 0:00:00] } 5.a3 { [%eval 0,1] [%emt 0:00:00] } 5...Bxd2+
{ [%eval 0,1] [%emt 0:00:00] } 6.Bxd2 { [%eval 0,1] [%emt 0:00: 00] } 6...a4
{ [%eval 0,1] [%emt 0:00:00] } 7.Bg5 { [%eval 0,1] [%emt 0:00:00] } 7...h6
{ [%eval 0,1] [%emt 0:00:00] } 8.Bh4 { [%eval 0,1] [%emt 0:00:00] } 8...c5
{ [%eval 0,1] [%emt 0:00:00] } 9.Bxf6 { [%eval 19,15] [%emt 0:01:33] }
9...Qxf6 { [%eval -3,14] [%emt 0:00:42] (Qxf6) } 10.e3
{ [%eval 16,15] [%emt 0:01:11] (e3) } 10...Nc6
{ [%eval 1,14] [%emt 0:00:42] (Nc6) } 11.Be2
{ [%eval 22,14] [%emt 0:00:29] (Be2) } 11...O-O
{ [%eval -8,14] [%emt 0:00:42] (cxd4) } 12.O-O
{ [%eval 28,14] [%emt 0:01:06] (e1g1) } 12...d6
{ [%eval -21,15] [%emt 0:00:42] (cxd4) } 13.dxc5
{ [%eval 31,14] [%emt 0:00:31] (dxc5) } 13...dxc5
{ [%eval -20,15] [%emt 0:00:42] (dxc5) } 14.Qc2
{ [%eval 35,15] [%emt 0:00:38] (Qc2) } 14...Qe7
{ [%eval -20,14] [%emt 0:00:38] (Rd8) } 15.Rfd1
{ [%eval 43,14] [%emt 0:00:28] (Rfd1) } 15...e5
{ [%eval -13,13] [%emt 0:00: 43] (e5) } 16.Rd2
{ [%eval 46,14] [%emt 0:00:54] (Qe4) } 16...e4
{ [%eval 13,14] [%emt 0:00:34] (Bg4) } 17.Ne1
{ [%eval 28,15] [%emt 0:00:19] (Ne1) } 17...Rd8
{ [%eval 15,15] [%emt 0:00:44] (Rd8) } 18.Rxd8+
{ [%eval 29,15] [%emt 0:00:24] (Rd5) } 18...Nxd8
{ [%eval 6,15] [%emt 0:00:44] (Nxd8) } 19.Rd1
{ [%eval 29,16] [%emt 0:00:41] (Rd1) } 19...Nc6
{ [%eval 3,14] [%emt 0:00:44] (Nc6) } 20.g3
{ [%eval 29,14] [%emt 0:00:16] (g3) } 20...Bf5
{ [%eval 4,15] [%emt 0:00:44] (Ra6) } 21.Ng2
{ [%eval 50,14] [%emt 0: 00:20] (Ng2) } 21...g5
{ [%eval 2,14] [%emt 0:00:37] (Ne5) } 22.h4
{ [%eval 62,12] [%emt 0:00:22] (Ne1) } 22...Ne5
{ [%eval 20,13] [%emt 0:00:37] (Ne5) } 23.hxg5
{ [%eval 56,13] [%emt 0:00:32] (Rd5) } 23...hxg5
{ [%eval 23,14] [%emt 0:00:46] (hxg5) } 24.Rd5
{ [%eval 49,13] [%emt 0:00:27] (Rd5) } 24...f6
{ [%eval 42,13] [%emt 0:00:46] (f6) } 25.Ne1
{ [%eval 35,13] [%emt 0:00:16] (Ne1) } 25...Bg6
{ [%eval 33,13] [%emt 0: 00:46] (Kg7) } 26.Rd2
{ [%eval 15,13] [%emt 0:00:22] (Rd2) } 26...Qc7
{ [%eval 61,14] [%emt 0:00:38] (f5) } 27.Rd1
{ [%eval 6,13] [%emt 0:00:25] (Rd1) } 27...Kg7
{ [%eval 63,13] [%emt 0:00:47] (Qa5) } 28.Kg2
{ [%eval 0,13] [%emt 0:00:22] (Rb1) } 28...Rh8
{ [%eval 155,13] [%emt 0:00:48] (Qa5) } 29.Qd2
{ [%eval -172,12] [%emt 0:00:13] (Qxa4) } 29...Qc8
{ [%eval 266,13] [%emt 0:00:48] (Qc8) } 30.f4
{ [%eval -233,13] [%emt 0:00:18] (f4) } 30...exf3+
{ [%eval 257,13] [%emt 0:00:48] (exf3) } 31.Bxf3
{ [%eval -287,14] [%emt 0:00:30] (Bxf3) } 31...Qh3+
{ [%eval 257,12] [%emt 0:00:49] (13) } 32.Kg1
{ [%eval -327,13] [%emt 0:00:27] (Kf2) } 32...g4
{ [%eval 391,13] [%emt 0:00: 49] (13) } 33.Bxb7
{ [%eval -344,12] [%emt 0:00:09] (Bd5) } 33...Qxg3+
{ [%eval 410,13] [%emt 0:00:39] (Qxg3) } 34.Qg2
{ [%eval -365,14] [%emt 0:00:26] (Qg2) } 34...Qxe3+
{ [%eval 428,14] [%emt 0:00:52] (Qxe3) } 35.Qf2
{ [%eval -400,14] [%emt 0:00:22] (Qf2) } 35...Qxf2+
{ [%eval 429,15] [%emt 0:00:43] (Qxf2) } 36.Kxf2
{ [%eval -400,10] [%emt 0:00:00] (Kxf2) } 36...Rb8
{ [%eval 450,16] [%emt 0:00:56] (Rb8) } 37.Ba6
{ [%eval -389,13] [%emt 0:00:06] (Bd5) } 37...Rxb2+
{ [%eval 538,14] [%emt 0:00:52] (Rxb2) } 38.Kg1
{ [%eval -472,15] [%emt 0:00:31] (Kg3) } 38...g3
{ [%eval 652,17] [%emt 0:01:00] (13) } 39.Rc1
{ [%eval -531,16] [%emt 0:00:08] (Rc1) } 39...Be4
{ [%eval 746,17] [%emt 0:01:03] (Be4) } 40.Rc3
{ [%eval -540,16] [%emt 0:00:08] (Rc3) } 40...Rb3
{ [%eval 861,18] [%emt 0:01:09] (Rb3) } 41.Rc1
{ [%eval -743,18] [%emt 0:01:09] (Rc1) } 41...Rxa3
{ [%eval 906,16] [%emt 0:00:27] (13) } 42.Kf1
{ [%eval -794,17] [%emt 0:01:03] (Kf1) } 0-1

[Event "41st Amateur D7"]
[Site "ChessGUI4"]
[Date "2013.07.10"]
[Round "30.3"]
[White "Waxman 2011"]
[Black "FireFly 2.6.0 64-bit"]
[Result "1-0"]
[BlackElo "2258"]
[ECO "C45"]
[EventDate "2013.??.??"]
[TimeControl "40/1500:40/1500:40/1500"]
[WhiteElo "2256"]

{ i5 Quad } 1.e4 { [%eval 0,1] [%emt 0:00:00] } 1...e5
{ [%eval 0,1] [%emt 0:00:00] } 2.Nf3 { [%eval 0,1] [%emt 0:00:00] } 2...Nc6
{ [%eval 0,1] [%emt 0:00:00] } 3.d4 { [%eval 0,1] [%emt 0:00:00] } 3...exd4
{ [%eval 0,1] [%emt 0:00:00] } 4.Nxd4 { [%eval 0,1] [%emt 0:00:00] } 4...Bc5
{ [%eval 0,1] [%emt 0:00:00] } 5.Be3 { [%eval 0,1] [%emt 0:00:00] } 5...Qf6
{ [%eval 0,1] [%emt 0:00:00] } 6.c3 { [%eval 0,1] [%emt 0:00: 00] } 6...Nge7
{ [%eval 0,1] [%emt 0:00:00] } 7.Bc4 { [%eval 0,1] [%emt 0:00:00] } 7...b6
{ [%eval 0,1] [%emt 0:00:00] } 8.f4 { [%eval 0,1] [%emt 0:00:00] } 8...Bb7
{ [%eval 0,1] [%emt 0:00:00] } 9.O-O { [%eval 18,11] [%emt 0:00:54] } 9...O-O
{ [%eval -3,10] [%emt 0:00:57] (O-O-O) } 10.Nc2
{ [%eval 9,12] [%emt 0:00:46] (Qd3) } 10...Na5
{ [%eval -16, 11] [%emt 0:00:56] (Na5) } 11.Bd3
{ [%eval 12,12] [%emt 0:00:57] (Bd3) } 11...Rfe8
{ [%eval -22,11] [%emt 0:00:55] (Rfe8) } 12.Nd2
{ [%eval 12,12] [%emt 0:00:50] (Nd2) } 12...Bxe3+
{ [%eval -16,10] [%emt 0:00:55] (Bxe3) } 13.Nxe3
{ [%eval 16,11] [%emt 0:00:25] (Nxe3) } 13...Ng6
{ [%eval -23,11] [%emt 0:00:54] (Nac6) } 14.Qf3
{ [%eval 8,11] [%emt 0:00:40] (e5) } 14...Qd6
{ [%eval -24,11] [%emt 0:00:53] (Bc6) } 15.Nf5
{ [%eval 24,12] [%emt 0:01:15] (Nf5) } 15...Qc5+
{ [%eval -28,11] [%emt 0:00:52] (Qf6) } 16.Kh1
{ [%eval 29,12] [%emt 0:01:02] (Nd4) } 16...Rad8
{ [%eval -10,10] [%emt 0:00:52] (Rad8) } 17.Nd4
{ [%eval 27,12] [%emt 0:01:27] (Qg3) } 17...d5
{ [%eval -10, 12] [%emt 0:00:51] (Qf8) } 18.e5
{ [%eval 42,12] [%emt 0:00:44] (e5) } 18...Nc6
{ [%eval -9,11] [%emt 0:00:50] (Qe7) } 19.N2b3
{ [%eval 57,12] [%emt 0:00:58] (Nf5) } 19...Qe7
{ [%eval -48,12] [%emt 0:00:49] (Qe7) } 20.Qh5
{ [%eval 45,12] [%emt 0:01:02] (Nxc6) } 20...Nxd4
{ [%eval -24,11] [%emt 0:00:48] (Nb8) } 21.Nxd4
{ [%eval 50,12] [%emt 0:00:56] (cxd4) } 21...c5
{ [%eval -28,11] [%emt 0:00:39] (c5) } 22.Nf3
{ [%eval 75,12] [%emt 0:00:32] (Nf5) } 22...Nf8
{ [%eval -79,12] [%emt 0:00:39] (Nf8) } 23.Bb5
{ [%eval 79,12] [%emt 0:00:33] (f5) } 23...Nd7
{ [%eval -50,12] [%emt 0:00:38] (Nd7) } 24.f5
{ [%eval 85,12] [%emt 0:00:34] (Rae1) } 24...Nxe5
{ [%eval -68,12] [%emt 0:00:38] (Nxe5) } 25.Bxe8
{ [%eval 117,11] [%emt 0:00:34] (Bxe8) } 25...Rxe8
{ [%eval -61,12] [%emt 0:00:38] (Rxe8) } 26.Rae1
{ [%eval 141,13] [%emt 0:00:45] (Rae1) } 26...f6
{ [%eval -135,12] [%emt 0:00:37] (Qf6) } 27.Nxe5
{ [%eval 141,14] [%emt 0:00: 35] (Nxe5) } 27...fxe5
{ [%eval -102,13] [%emt 0:00:37] (fxe5) } 28.f6
{ [%eval 130,14] [%emt 0:00:31] (f6) } 28...gxf6
{ [%eval -102,11] [%emt 0:00:29] (Qf7) } 29.Rxf6
{ [%eval 267,13] [%emt 0:00:35] } 29...Qxf6
{ [%eval -241,12] [%emt 0:00:37] (Qxf6) } 30.Qxe8+
{ [%eval 288,14] [%emt 0:00:18] (Qxe8) } 30...Kg7
{ [%eval -220,11] [%emt 0:00: 28] (Kg7) } 31.Qb8
{ [%eval 303,14] [%emt 0:00:38] (Qxe5) } 31...Bc6
{ [%eval -235,12] [%emt 0:00:28] (Bc6) } 32.Qxa7+
{ [%eval 309,14] [%emt 0:00:38] (Qxa7) } 32...Kg6
{ [%eval -232,12] [%emt 0:00:28] (Kg6) } 33.Qb8
{ [%eval 309,14] [%emt 0:00:54] (Qxb6) } 33...e4
{ [%eval -230,12] [%emt 0:00:29] (e4) } 34.Qxb6
{ [%eval 306,12] [%emt 0:00:12] (Qxb6) } 34...d4
{ [%eval -252,12] [%emt 0:00:29] (Qd6) } 35.Qxc5
{ [%eval 271,12] [%emt 0:00:17] (Qxc5) } 35...d3
{ [%eval -272,12] [%emt 0:00:29] (e3) } 36.b4
{ [%eval 337,12] [%emt 0:01:00] (Kg1) } 36...h5
{ [%eval -266,11] [%emt 0:00:29] (Bb7) } 37.c4
{ [%eval 350,12] [%emt 0:00:39] (Kg1) } 37...h4
{ [%eval -307,11] [%emt 0:00:29] (Bb7) } 38.b5
{ [%eval 383,13] [%emt 0:01:06] (b5) } 38...Bb7
{ [%eval -363, 12] [%emt 0:00:29] (Ba8) } 39.Qe3
{ [%eval 392,12] [%emt 0:00:21] (Qe3) } 39...Qd8
{ [%eval -350,11] [%emt 0:00:29] (Qd8) } 40.a4
{ [%eval 423,12] [%emt 0:00:21] (c5) } 40...Ba8
{ [%eval -448,11] [%emt 0:00:29] (Ba8) } 41.Rf1
{ [%eval 487,12] [%emt 0:00:31] (c5) } 41...Qd6
{ [%eval -619,12] [%emt 0:00:36] (Qd7) } 42.Qa7
{ [%eval 694, 13] [%emt 0:00:38] (a5) } 42...Qe6
{ [%eval -632,13] [%emt 0:00:36] (Qe6) } 43.Qxa8
{ [%eval 694,12] [%emt 0:00:12] (Qxa8) } 43...d2
{ [%eval -666,13] [%emt 0:00:36] (e3) } 44.g3
{ [%eval 687,12] [%emt 0:00:39] (Qd8) } 44...h3
{ [%eval -614,13] [%emt 0:00:36] (h3) } 1-0